Workbook

Sheet 部门预算收支总表
A1: 部门预算收支总表 | B1: ="" ->  | C1: ="" ->  | D1: ="" ->  | E1: ="" -> 
A2: 部门编码及名称：河北唐山南堡经济开发区城市建设管理局 | B2: 预算年度：2017 | C2: ="" ->  | D2: 预算年度：2022 | E2: 金额单位：万元
A3: 序号 | B3: 收入 | C3: 资金来源 | D3: 支出 | E3: ="" -> 
A4: 栏次 | B4: 项 目 | C4: 预算数 | D4: 项 目 | E4: 预算数
A5: 栏次 | B5: 1 | C5: 2 | D5: 3 | E5: 4
A6: 1 | B6: 一、财政拨款收入 | C6: 4761.43 | D6: 一、一般公共服务支出
A7: 2 | B7: 二、上级拨款收入 | C7: 0 | D7: 二、外交支出 | E7: 0
A8: 3 | B8: 三、事业收入 | C8: 0 | D8: 三、国防支出 | E8: 0
A9: 4 | B9: 其中：财政专户收入 | C9: 0 | D9: 四、公共安全支出
A10: 5 | B10: 四、经营收入 | C10: 0 | D10: 五、教育支出 | E10: 0
A11: 6 | B11: 五、附属单位上缴收入 | C11: 0 | D11: 六、科学技术支出 | E11: 0
A12: 7 | B12: 六、其他收入 | C12: 0 | D12: 七、文化旅游体育与传媒支出 | E12: 0
A13: 8 | D13: 八、社会保障和就业支出 | E13: 52.09
A14: 9 | D14: 九、卫生健康支出 | E14: 50.66
A15: 10 | D15: 十、节能环保支出
A16: 11 | D16: 十一、城乡社区支出 | E16: 4231.21
A17: 12 | D17: 十二、农林水支出 | E17: 370
A18: 13 | D18: 十三、交通运输支出 | E18: 0
A19: 14 | D19: 十四、资源勘探信息等支出 | E19: 0
A20: 15 | D20: 十五、商业服务业等支出 | E20: 0
A21: 16 | D21: 十六、金融支出 | E21: 0
A22: 17 | D22: 十七、援助其他地区支出 | E22: 0
A23: 18 | D23: 十八、国土海洋气候等支出 | E23: 0
A24: 19 | D24: 十九、住房保障支出 | E24: 56.47
A25: 20 | D25: 二十、粮油物资储备支出 | E25: 0
A26: 21 | D26: 二十一、灾害防治及应急管理支出 | E26: 1
A27: 22 | D27: 二十二、国债还本付息支出 | E27: 0
A28: 23 | D28: 二十三、其他支出 | E28: 0
A29: 24 | B29: 本年收入合计 | C29: =C6+C7+C8+C10+C11+C12 -> 4761.43 | D29: 本年支出合计 | E29: =SUM(E7:E28) -> 4761.43
A30: 25 | B30: 用事业基金弥补收支差额 | C30: 0 | D30: 结余分配 | E30: 0
A31: 26 | B31: 年初结转和结余 | C31: 0 | D31: 年末结转和结余 | E31: 0
A32: 27 | B32: 合计 | C32: =C29 -> 4761.43 | D32: 合计 | E32: =E29 -> 4761.43

Sheet 部门预算收入总表
A1: 部门预算收入总表 | B1: ="" -> 
A2: 部门编码及名称：河北唐山南堡经济开发区城市建设管理局 | B2: ="" ->  | F2: 年度： | H2: 预算年度：2022 | I2: ="" ->  | J2: 金额单位：万元 | K2: ="" -> 
A3: 序号 | B3: 科目 | C3: ="" ->  | D3: 本年收入合计 | E3: 财政拨款收入 | F3: 上级补助收入 | G3: 事业收入 | H3: ="" ->  | I3: 经营收入 | J3: 附属单位上缴收入 | K3: 其他收入
A4: 栏次 | B4: 功能分类科目编码 | C4: 科目名称 | D4: ="" ->  | E4: 小计 | F4: 事业费限额 | G4: 小计 | H4: 其中：财政专户收入 | I4: ="" ->  | J4: ="" ->  | K4: 其他来源收入
A5: 栏次 | B5: 1 | C5: 2 | D5: 3 | E5: 4 | F5: 5 | G5: 6 | H5: 7 | I5: 8 | J5: 9 | K5: 10
A6: 1 | C6: 合计 | D6: =E6+F6+G6+I6+J6+K6 -> 4761.43 | E6: =SUM(E7:E20) -> 4761.43 | F6: 0 | G6: 0 | H6: 0 | I6: 0 | J6: 0 | K6: 0
A7: 2 | B7: 2080505 | C7: 机关事业单位基本养老保险缴费支出 | D7: =E7+F7+G7+I7+J7+K7 -> 52.09 | E7: 52.09
A8: 3 | B8: 2101101 | C8: 行政单位医疗 | D8: 50.66 | E8: 50.66 | F8: 0 | G8: 0 | H8: 0 | I8: 0 | J8: 0 | K8: 0
A9: 4 | B9: 2120101 | C9: 行政运行 | D9: 613.52 | E9: 613.52 | F9: 0 | G9: 0 | H9: 0 | I9: 0 | J9: 0 | K9: 0
A10: 5 | B10: 2120106 | C10: 工程建设管理 | D10: 0.5 | E10: 0.5
A11: 6 | B11: 2120303 | C11: 小城镇基础设施建设 | D11: 390 | E11: 390
A12: 7 | B12: 2120399 | C12: 其他城乡社区公共设施支出 | D12: 30 | E12: 30
A13: 8 | B13: 2120501 | C13: 城乡社区环境卫生 | D13: 1810.19 | E13: 1810.19 | F13: 0 | G13: 0 | H13: 0 | I13: 0 | J13: 0 | K13: 0
A14: 9 | B14: 2121301 | C14: 城市公共设施 | D14: 1330 | E14: 1330
A15: 10 | B15: 2129999 | C15: 其他城乡社区支出 | D15: 57 | E15: 57 | F15: 0 | G15: 0 | H15: 0 | I15: 0 | J15: 0 | K15: 0
A16: 11 | B16: 2130205 | C16: 森林资源培育 | D16: 200 | E16: 200
A17: 12 | B17: 2130312 | C17: 水质监测 | D17: 5 | E17: 5
A18: 13 | B18: 2130314 | C18: 防汛 | D18: 165 | E18: 165
A19: 14 | B19: 2210201 | C19: 住房公积金 | D19: 56.47 | E19: 56.47 | F19: 0 | G19: 0 | H19: 0 | I19: 0 | J19: 0 | K19: 0
A20: 15 | B20: 2240201 | C20: 行政运行 | D20: 1 | E20: 1

Sheet 部门预算支出总表
A1: 部门预算支出总表 | B1: ="" -> 
A2: 部门编码及名称：河北唐山南堡经济开发区城市建设管理局 | B2: ="" ->  | E2: 年度： | F2: 预算年度：2022 | H2: 金额单位：万元 | I2: ="" -> 
A3: 序号 | B3: 科目 | C3: ="" ->  | D3: 本年支出合计 | E3: 基本支出 | F3: 项目支出 | G3: 上缴上级支出 | H3: 经营支出 | I3: 对附属单位补助支出
A4: 栏次 | B4: 功能分类科目编码 | C4: 科目名称 | D4: ="" ->  | E4: 事业费限额 | F4: 其他 | G4: ="" ->  | H4: ="" ->  | I4: 其他来源收入
A5: 栏次 | B5: 1 | C5: 2 | D5: 3 | E5: 4 | F5: 5 | G5: 6 | H5: 7 | I5: 8
A6: 1 | C6: 合计 | D6: =SUM(D7:D20) -> 4761.43 | E6: =SUM(E7:E20) -> 694.74 | F6: =SUM(F7:F20) -> 4066.69 | G6: 0 | H6: 0 | I6: 0
A7: 2 | B7: 2080505 | C7: 机关事业单位基本养老保险缴费支出 | D7: =E7+F7+G7+I7+J7+K7 -> 52.09 | E7: 52.09 | G7: 0 | H7: 0
A8: 3 | B8: 2101101 | C8: 行政单位医疗 | D8: 50.66 | E8: 50.66 | H8: 0
A9: 4 | B9: 2120101 | C9: 行政运行 | D9: 613.52 | E9: 535.52 | F9: 78 | H9: 0
A10: 5 | B10: 2120106 | C10: 工程建设管理 | D10: 0.5 | F10: 0.5 | H10: 0
A11: 6 | B11: 2120303 | C11: 小城镇基础设施建设 | D11: 390 | F11: 390 | G11: 0 | H11: 0
A12: 7 | B12: 2120399 | C12: 其他城乡社区公共设施支出 | D12: 30 | F12: 30 | G12: 0 | H12: 0
A13: 8 | B13: 2120501 | C13: 城乡社区环境卫生 | D13: 1810.19 | F13: 1810.19 | G13: 0 | H13: 0
A14: 9 | B14: 2121301 | C14: 城市公共设施 | D14: 1330 | F14: 1330 | G14: 0 | H14: 0
A15: 10 | B15: 2129999 | C15: 其他城乡社区支出 | D15: 57 | F15: 57 | G15: 0 | H15: 0
A16: 11 | B16: 2130205 | C16: 森林资源培育 | D16: 200 | F16: 200 | G16: 0 | H16: 0
A17: 12 | B17: 2130312 | C17: 水质监测 | D17: 5 | F17: 5
A18: 13 | B18: 2130314 | C18: 防汛 | D18: 165 | F18: 165
A19: 14 | B19: 2210201 | C19: 住房公积金 | D19: 56.47 | E19: 56.47
A20: 15 | B20: 2240201 | C20: 行政运行 | D20: 1 | F20: 1

Sheet 部门预算财政拨款收支总表
A1: 部门预算财政拨款收支总表 | B1: ="" -> 
A2: 部门编码及名称：河北唐山南堡经济开发区城市建设管理局 | D2: ="" ->  | E2: 预算年度：2022 | G2: 金额单位：万元
D3: 支出
A4: 栏次 | B4: 项 目 | C4: 金额 | D4: 项 目 | E4: 合计 | F4: 一般公共预算财政拨款 | G4: 政府性基金预算财政拨款 | H4: 国有资本经营预算财政拨款
A5: 栏次 | B5: 1 | C5: 2 | D5: 3 | E5: 4 | F5: 5 | G5: 6 | H5: 7
A6: 1 | B6: 一、一般公共预算财政拨款 | C6: 3431.43 | D6: 一、一般公共服务支出 | E6: =F6+G6+H6 -> 0 | G6: 0 | H6: 0
A7: 2 | B7: 二、政府性基金预算财政拨款 | C7: 1330 | D7: 二、外交支出 | E7: =F7+G7+H7 -> 0 | F7: 0 | G7: 0 | H7: 0
A8: 3 | B8: 三、国有资本经营预算财政拨款 | C8: 0 | D8: 三、国防支出 | E8: 0 | F8: 0 | G8: 0 | H8: 0
A9: 4 | D9: 四、公共安全支出 | E9: 0 | H9: 0
A10: 5 | D10: 五、教育支出 | E10: 0 | F10: 0 | H10: 0
A11: 6 | D11: 六、科学技术支出 | E11: 0 | F11: 0 | H11: 0
A12: 7 | D12: 七、文化体育与传媒支出 | E12: 0 | F12: 0 | H12: 0
A13: 8 | D13: 八、社会保障和就业支出 | E13: 52.09 | F13: 52.09 | H13: 0
A14: 9 | D14: 九、卫生健康支出 | E14: 50.66 | F14: 50.66 | H14: 0
A15: 10 | D15: 十、节能环保支出 | E15: 0 | H15: 0
A16: 11 | D16: 十一、城乡社区支出 | E16: 4231.21 | F16: 2901.21 | G16: 1330 | H16: 0
A17: 12 | D17: 十二、农林水支出 | E17: 370 | F17: 370 | H17: 0
A18: 13 | D18: 十三、交通运输支出 | E18: 0 | F18: 0 | G18: 0 | H18: 0
A19: 14 | D19: 十四、资源勘探信息等支出 | E19: 0 | F19: 0 | G19: 0 | H19: 0
A20: 15 | D20: 十五、商业服务业等支出 | E20: 0 | F20: 0 | G20: 0 | H20: 0
A21: 16 | D21: 十六、金融支出 | E21: 0 | F21: 0 | G21: 0 | H21: 0
A22: 17 | D22: 十七、援助其他地区支出 | E22: 0 | F22: 0 | G22: 0 | H22: 0
A23: 18 | D23: 十八、国土海洋气候等支出 | E23: 0 | F23: 0 | G23: 0 | H23: 0
A24: 19 | D24: 十九、住房保障支出 | E24: 56.47 | F24: 56.47 | H24: 0
A25: 20 | D25: 二十、粮油物资储备支出 | E25: 0 | F25: 0 | H25: 0
A26: 21 | D26: 二十一、灾害防治及应急管理支出 | E26: 1 | F26: 1
A27: 22 | D27: 二十一、国债还本付息支出 | E27: 0 | F27: 0 | H27: 0
A28: 23 | D28: 二十二、其他支出 | E28: 0 | F28: 0 | G28: 0 | H28: 0
A29: 24 | B29: 本年收入合计 | C29: =C6+C7+C8 -> 4761.43 | D29: 本年支出合计 | E29: 4761.43 | F29: =SUM(F6:F28) -> 3431.43 | G29: =SUM(G6:G28) -> 1330 | H29: =SUM(H6:H28) -> 0
A30: 25 | B30: 年初财政拨款结转和结余 | D30: 年末结转和结余 | E30: 0 | G30: 0 | H30: 0
A31: 26 | B31: 合计 | C31: =C29+C30 -> 4761.43 | D31: 合计 | E31: 4761.43 | F31: =F29 -> 3431.43 | G31: =G29 -> 1330 | H31: 0

Sheet 部门预算一般公共预算财政拨款支出表
A1: 部门预算一般公共预算财政拨款支出表 | B1: ="" ->  | C1: ="" ->  | D1: ="" ->  | E1: ="" ->  | F1: ="" -> 
A2: 部门编码及名称：河北唐山南堡经济开发区城市建设管理局 | B2: ="" ->  | C2: 预算年度：2017 | D2: ="" ->  | E2: 预算年度：2022 | F2: 金额单位：万元
A3: 序号 | B3: 科目 | C3: ="" ->  | D3: 合计 | E3: 基本支出 | F3: 项目支出
A4: 栏次 | B4: 功能分类科目编码 | C4: 科目名称 | D4: ="" ->  | E4: ="" ->  | F4: 其他来源收入
A5: 栏次 | B5: 1 | C5: 2 | D5: 3 | E5: 4 | F5: 5
A6: 1 | C6: 合计 | D6: =E6+F6 -> 4761.43 | E6: =SUM(E7:E20) -> 694.74 | F6: =SUM(F7:F20) -> 4066.69
A7: 2 | B7: 2080505 | C7: 机关事业单位基本养老保险缴费支出 | D7: =E7+F7 -> 52.09 | E7: 52.09
A8: 3 | B8: 2101101 | C8: 行政单位医疗 | D8: 50.66 | E8: 50.66
A9: 4 | B9: 2120101 | C9: 行政运行 | D9: 613.52 | E9: 535.52 | F9: 78
A10: 5 | B10: 2120106 | C10: 工程建设管理 | D10: 0.5 | F10: 0.5
A11: 6 | B11: 2120303 | C11: 小城镇基础设施建设 | D11: 390 | F11: 390
A12: 7 | B12: 2120399 | C12: 其他城乡社区公共设施支出 | D12: 30 | F12: 30
A13: 8 | B13: 2120501 | C13: 城乡社区环境卫生 | D13: 1810.19 | F13: 1810.19
A14: 9 | B14: 2121301 | C14: 城市公共设施 | D14: 1330 | F14: 1330
A15: 10 | B15: 2129999 | C15: 其他城乡社区支出 | D15: 57 | F15: 57
A16: 11 | B16: 2130205 | C16: 森林资源培育 | D16: 200 | F16: 200
A17: 12 | B17: 2130312 | C17: 水质监测 | D17: 5 | F17: 5
A18: 13 | B18: 2130314 | C18: 防汛 | D18: 165 | F18: 165
A19: 14 | B19: 2210201 | C19: 住房公积金 | D19: 56.47 | E19: 56.47
A20: 15 | B20: 2240201 | C20: 行政运行 | D20: 1 | F20: 1

Sheet 部门预算一般公共预算财政拨款基本支出表
A1: 部门预算一般公共预算财政拨款基本支出表 | B1: ="" ->  | C1: ="" ->  | D1: ="" ->  | E1: ="" ->  | F1: ="" -> 
A2: 部门编码及名称：河北唐山南堡经济开发区城市建设管理局 | B2: ="" ->  | C2: 预算年度：2017 | D2: ="" ->  | E2: 预算年度：2022 | F2: 金额单位：万元
A3: 序号 | B3: 科目 | C3: ="" ->  | D3: 基本支出 | E3: 基本支出 | F3: 项目支出
A4: 栏次 | B4: 经济分类科目编码 | C4: 科目名称 | D4: 合计 | E4: 人员经费 | F4: 公用经费
A5: 栏次 | B5: 1 | C5: 2 | D5: 3 | E5: 4 | F5: 5
A6: 1 | C6: 合计 | D6: =D7+D17+D38+D42 -> 694.74 | E6: =E7+E17+E38+E42 -> 668.77 | F6: =F7+F17+F38+F42 -> 25.97
A7: 2 | B7: 301 | C7: 工资福利支出 | D7: =SUM(D8:D16) -> 668.6 | E7: =SUM(E8:E16) -> 668.6 | F7: =SUM(F8:F16) -> 0
A8: 3 | B8: 30101 | C8: 基本工资 | D8: =E8+F8 -> 151.01 | E8: 151.01
A9: 4 | B9: 30102 | C9: 津贴补贴 | D9: 40.03 | E9: 40.03
A10: 5 | B10: 30103 | C10: 奖金 | D10: 0.36 | E10: 0.36
A11: 9 | B11: 30107 | C11: 绩效工资 | D11: 170.43 | E11: 170.43
A12: 6 | B12: 30108 | C12: 基本养老保险费 | D12: 52.09 | E12: 52.09
A13: 7 | B13: 30110 | C13: 基本医疗保险费 | D13: 50.66 | E13: 50.66
A14: 8 | B14: 30112 | C14: 其他社保缴费 | D14: 3.91 | E14: 3.91
A15: 9 | B15: 30113 | C15: 住房公积金 | D15: 56.47 | E15: 56.47
A16: 10 | B16: 30199 | C16: 其他工资福利支出 | D16: =E16+F16 -> 143.64 | E16: 143.64
A17: 11 | B17: 302 | C17: 商品和服务支出 | D17: =SUM(D18:D37) -> 24.97 | E17: =SUM(E18:E37) -> 0 | F17: =SUM(F18:F37) -> 24.97
A18: 12 | B18: 30201 | C18: 办公费 | D18: 3.8 | F18: 3.8
A19: 13 | B19: 30202 | C19: 印刷费 | D19: 2 | F19: 2
A20: 14 | B20: 30205 | C20: 水费 | D20: 0 | F20: 0
A21: 15 | B21: 30206 | C21: 电费 | D21: 0
A22: 16 | B22: 30207 | C22: 邮电费 | D22: 8.59 | F22: 8.59
A23: 17 | B23: 30208 | C23: 取暖费 | D23: 0
A24: 18 | B24: 30209 | C24: 物业管理费 | D24: 0
A25: 19 | B25: 30211 | C25: 差旅费 | D25: 4.5 | F25: 4.5
A26: 20 | B26: 30212 | C26: 因公出国（境）费用 | D26: 0
A27: 21 | B27: 30213 | C27: 维修(护)费 | D27: 1 | F27: 1
A28: 22 | B28: 30215 | C28: 会议费 | D28: 0
A29: 23 | B29: 30216 | C29: 培训费 | D29: 0
A30: 24 | B30: 30217 | C30: 公务接待费 | D30: 0
A31: 25 | B31: 30225 | C31: 专用燃料费 | D31: 0
A32: 26 | B32: 30226 | C32: 劳务费 | D32: 2.6 | F32: 2.6
A33: 27 | B33: 30228 | C33: 工会经费 | D33: 0
A34: 28 | B34: 30229 | C34: 福利费 | D34: 0
A35: 29 | B35: 30231 | C35: 公务用车运行维护费 | D35: 0
A36: 30 | B36: 30239 | C36: 公务交通补贴 | D36: 0.48 | F36: 0.48
A37: 31 | B37: 30299 | C37: 其他商品和服务支出 | D37: 2 | F37: 2
A38: 32 | B38: 303 | C38: 对个人和家庭的补助 | D38: =SUM(D39:D41) -> 0.17 | E38: =SUM(E39:E41) -> 0.17 | F38: =SUM(F39:F41) -> 0
A39: 33 | B39: 30309 | C39: 奖励金 | D39: 0.17 | E39: 0.17
A40: 34 | B40: 30313 | C40: 住房公积金 | D40: 0
A41: 35 | B41: 30102 | C41: 采暖补贴 | D41: 0
A42: 36 | B42: 310 | C42: 其他资本性支出 | D42: =SUM(D43) -> 1 | E42: =SUM(E43) -> 0 | F42: =SUM(F43) -> 1
A43: 37 | B43: 31002 | C43: 办公设备购置 | D43: 1 | F43: 1

Sheet 部门预算政府基金预算财政拨款支出表
A1: 部门预算政府基金预算财政拨款支出表 | B1: ="" ->  | C1: ="" ->  | D1: ="" ->  | E1: ="" ->  | F1: ="" -> 
A2: 部门编码及名称：河北唐山南堡经济开发区城市建设管理局 | B2: ="" ->  | C2: 预算年度：2017 | D2: ="" ->  | E2: 预算年度：2022 | F2: 金额单位：万元
A3: 序号 | B3: 科目 | C3: ="" ->  | D3: 合计 | E3: 基本支出 | F3: 项目支出
A4: 栏次 | B4: 功能分类科目编码 | C4: 科目名称 | D4: ="" ->  | E4: ="" ->  | F4: 其他来源收入
A5: 栏次 | B5: 1 | C5: 2 | D5: 3 | E5: 4 | F5: 5
A6: 1 | B6: 2121301 | C6: 城市公共设施 | D6: =SUM(E6:F6) -> 1330 | F6: 1330
C7: 合计 | D7: =SUM(D6:D6) -> 1330 | E7: 0 | F7: =SUM(F6:F6) -> 1330

Sheet 部门预算国有资本经营预算财政拨款支出表
A1: 部门预算国有资本经营预算财政拨款支出表
A2: 部门编码及名称：河北唐山南堡经济开发区城市建设管理局 | C2: 预算年度：2017 | E2: 预算年度：2022 | F2: 金额单位：万元
A3: 序号 | B3: 科目 | D3: 合计 | E3: 基本支出 | F3: 项目支出
A4: 栏次 | B4: 功能分类科目编码 | C4: 科目名称 | F4: 其他来源收入
A5: 栏次 | B5: 1 | C5: 2 | D5: 3 | E5: 4 | F5: 5
A15: 注：无国有资本经营预算，空表列示。

Sheet 部门预算财政拨款“三公”经费支出表
A1: 部门预算财政拨款“三公”经费支出表 | B1: ="" ->  | C1: ="" ->  | D1: ="" ->  | E1: ="" ->  | F1: ="" -> 
A2: 部门编码及名称：河北唐山南堡经济开发区城市建设管理局 | B2: ="" ->  | C2: 预算年度：2017 | D2: ="" ->  | E2: 预算年度：2022 | F2: 金额单位：万元
A3: 序号 | B3: 项 目 | C3: 资金来源 | D3: ="" ->  | E3: ="" ->  | F3: ="" -> 
A4: 栏次 | B4: ="" ->  | C4: 合计 | D4: 一般公共预算财政拨款 | E4: 政府性基金财政拨款 | F4: 国有资本经营预算财政拨款
A5: 栏次 | B5: 1 | C5: 2 | D5: 3 | E5: 4 | F5: 5
A6: 1 | B6: 合计 | E6: 0 | F6: 0
A7: 2 | B7: 一、因公出国（境）费 | E7: 0 | F7: 0
A8: 3 | B8: 二、公务用车购置及运维费 | E8: 0 | F8: 0
A9: 4 | B9: 其中：公务用车购置费 | E9: 0 | F9: 0
A10: 5 | B10: 公务用车运行费 | E10: 0 | F10: 0
A11: 6 | B11: 三、公务接待费 | E11: 0 | F11: 0
A13: 注：无“三公”经费预算，空表列示。

Sheet Sheet1

Sheet Sheet2
